bitfinex-derivatives/quotes_BTCF0:USTF0_20251214
["timestamp","ask_amount","ask_price","bid_price","bid_amount"]
[1765722583197,1.21134183,89322.0,89321.0,0.06307]
[1765722583494,1.211338,89322.0,89321.0,0.06307]
[1765722585290,1.15089135,89322.0,89321.0,0.06307]
[1765722589095,0.45117135,89322.0,89321.0,0.06307]
[1765722589284,1.15089135,89322.0,89321.0,0.06307]
[1765722593206,1.15085135,89322.0,89321.0,0.06307]
[1765722594807,0.42123135,89322.0,89321.0,0.06307]
[1765722594995,0.39157135,89322.0,89321.0,0.06307]
[1765722595905,0.03077135,89322.0,89321.0,0.06307]
[1765722596095,0.05490135,89322.0,89321.0,0.06207]
[1765722596295,0.05590135,89322.0,89321.0,0.07007]
[1765722596500,0.44627135,89322.0,89321.0,0.07007]
[1765722597800,0.44627135,89322.0,89321.0,0.06907]
[1765722598591,0.44627135,89322.0,89321.0,0.06707]
[1765722599408,0.44527135,89322.0,89321.0,0.06207]
[1765722599606,0.44627135,89322.0,89321.0,0.06907]
[1765722600811,0.44527135,89322.0,89321.0,0.06607]
[1765722601106,0.44627135,89322.0,89321.0,0.06707]
[1765722603108,0.44627135,89322.0,89321.0,0.06807]
[1765722604011,0.44627135,89322.0,89321.0,0.06907]
[1765722605810,0.44527135,89322.0,89321.0,0.003]
[1765722606010,0.44627135,89322.0,89321.0,0.01]
[1765722606801,0.44627135,89322.0,89321.0,0.06839]
[1765722607509,0.44527135,89322.0,89321.0,0.06139]
[1765722607704,0.4205,89322.0,89321.0,0.06639]
[1765722608216,0.38993,89322.0,89321.0,0.05939]
[1765722608407,0.4195,89322.0,89321.0,0.06439]
[1765722608605,0.4205,89322.0,89321.0,0.06639]
[1765722609408,0.4205,89322.0,89321.0,0.06039]
[1765722609409,0.4195,89322.0,89321.0,0.06039]
[1765722609608,0.4205,89322.0,89321.0,0.06739]
[1765722610317,0.4205,89322.0,89321.0,0.06839]
[1765722610712,0.3628,89322.0,89321.0,0.06839]
[1765722611017,0.3618,89322.0,89321.0,0.06539]
[1765722611214,0.3628,89322.0,89321.0,0.07039]
[1765722611614,0.41959,89322.0,89321.0,0.07039]
[1765722611814,0.41859,89322.0,89321.0,0.06639]
[1765722612014,0.41959,89322.0,89321.0,0.07039]
[1765722612223,0.41859,89322.0,89321.0,0.06239]
[1765722612416,0.41959,89322.0,89321.0,0.07039]
[1765722613317,0.41859,89322.0,89321.0,0.06639]
[1765722613525,0.41959,89322.0,89321.0,0.07039]
[1765722613823,0.41859,89322.0,89321.0,0.06239]
[1765722614024,0.41959,89322.0,89321.0,0.07039]
[1765722614208,0.41959,89322.0,89321.0,0.06939]
[1765722614407,0.41959,89322.0,89321.0,0.03144]
[1765722614408,0.4297845,89322.0,89321.0,0.03144]
[1765722614608,0.4307845,89322.0,89321.0,0.01]
[1765722614808,0.4567775,89322.0,89321.0,0.01]
[1765722615020,0.4557775,89322.0,89313.0,0.00016795]
[1765722615319,0.4287855,89314.0,89313.0,0.00016795]
[1765722615519,0.4547785,89314.0,89313.0,0.00016795]
[1765722616726,0.4547785,89314.0,89288.0,0.05839]
[1765722616727,0.0679886,89289.0,89288.0,0.05839]
[1765722617724,0.05679,89287.0,89286.0,0.04464]
[1765722618025,0.05679,89287.0,89286.0,0.07459]
[1765722619024,0.05779,89287.0,89286.0,0.07959]
[1765722620627,0.05879,89287.0,89286.0,0.08859]
[1765722621121,0.05879,89287.0,89286.0,0.014]
[1765722621321,0.05879,89287.0,89286.0,0.04244]
[1765722622719,0.05879,89287.0,89286.0,0.07239]
[1765722623518,0.05879,89287.0,89286.0,0.014]
[1765722623720,0.05879,89287.0,89280.0,0.00027969]
[1765722623721,0.0679896,89281.0,89280.0,0.00027969]
[1765722624232,0.09378414,89281.0,89280.0,0.00027969]
[1765722624528,0.0679911,89269.0,89268.0,0.07459]
[1765722624822,0.4287911,89269.0,89268.0,0.07459]
[1765722625329,0.42890284,89269.0,89268.0,0.07459]
[1765722625722,0.41770174,89269.0,89268.0,0.07459]
[1765722626821,0.42070174,89269.0,89268.0,0.07459]
[1765722627029,0.36491174,89269.0,89268.0,0.07459]
[1765722627324,0.00411174,89269.0,89268.0,0.07459]
[1765722628533,0.03052174,89269.0,89268.0,0.07459]
[1765722628832,0.05900174,89269.0,89268.0,0.07459]
[1765722629036,0.06000174,89269.0,89268.0,0.07459]
[1765722629719,0.00311174,89269.0,89268.0,0.0857913]
[1765722629921,0.00016795,89277.0,89276.0,0.0688003]
[1765722630126,0.0111955,89314.0,89276.0,0.0688003]
[1765722630127,0.3608,89298.0,89297.0,0.0687976]
[1765722630331,0.41769,89313.0,89312.0,0.0576]
[1765722631133,0.3608,89313.0,89312.0,0.07454]
[1765722631735,0.3618,89313.0,89312.0,0.07454]
[1765722631935,0.3628,89313.0,89312.0,0.07454]
[1765722632130,0.002,89313.0,89312.0,0.07454]
[1765722633728,0.001,89313.0,89312.0,0.07754]
[1765722634034,0.002,89313.0,89312.0,0.07754]
[1765722635435,0.001,89313.0,89312.0,0.07754]
[1765722635637,0.002,89313.0,89312.0,0.07754]
[1765722636636,0.002,89313.0,89312.0,0.07654]
[1765722636939,0.001,89313.0,89312.0,0.07654]
[1765722637140,0.01639,89327.0,89325.0,0.068794]
[1765722637332,0.05689,89326.0,89325.0,0.068794]
[1765722638339,0.068084,89326.0,89325.0,0.069794]
[1765722638838,0.068084,89326.0,89325.0,0.0586]
[1765722640137,0.069084,89326.0,89325.0,0.0586]
[1765722640339,0.069084,89326.0,89325.0,0.0576]
[1765722640638,0.070084,89326.0,89325.0,0.0586]
[1765722641339,0.05689,89318.0,89317.0,0.0409251]
[1765722641540,0.05689,89318.0,89317.0,0.0576]
[1765722642637,0.41769,89318.0,89317.0,0.0576]
[1765722642940,0.07328,89310.0,89309.0,0.0687961]
[1765722643235,0.05689,89310.0,89309.0,0.0687961]
[1765722643630,0.05689,89310.0,89309.0,0.08029109]
[1765722644738,0.05889,89310.0,89309.0,0.08229109]
[1765722645528,0.002,89310.0,89309.0,0.08229109]
[1765722646241,0.05789,89310.0,89309.0,0.08229109]
[1765722646545,0.05889,89310.0,89309.0,0.08229109]
[1765722646843,0.05789,89310.0,89309.0,0.08229109]
[1765722647035,0.05889,89310.0,89309.0,0.08229109]
[1765722647439,0.05789,89310.0,89309.0,0.08229109]
[1765722647640,0.05889,89310.0,89309.0,0.08229109]
[1765722650141,0.05789,89310.0,89309.0,0.08229109]
[1765722650339,0.05889,89310.0,89309.0,0.08229109]
[1765722650844,0.05789,89310.0,89309.0,0.08229109]
[1765722651036,0.05889,89310.0,89309.0,0.08229109]
[1765722652442,0.05789,89310.0,89309.0,0.08229109]
[1765722652645,0.05889,89310.0,89309.0,0.08229109]
[1765722653547,0.07528,89310.0,89309.0,0.05442109]
[1765722653747,0.07528,89310.0,89309.0,0.0707961]
[1765722654645,0.07528,89310.0,89309.0,0.08208615]
[1765722654841,0.05889,89310.0,89309.0,0.08208615]
[1765722657042,0.05789,89310.0,89309.0,0.08008615]
[1765722657347,0.05889,89310.0,89309.0,0.08208615]
[1765722657536,0.05789,89310.0,89309.0,0.08208615]
[1765722657741,0.05889,89310.0,89309.0,0.08208615]
[1765722658549,0.05789,89310.0,89309.0,0.08008615]
[1765722658748,0.05889,89310.0,89309.0,0.08208615]
[1765722659745,0.05789,89310.0,89309.0,0.08008615]
[1765722659940,0.05889,89310.0,89309.0,0.08208615]
[1765722660341,0.05789,89310.0,89309.0,0.08208615]
[1765722660540,0.05889,89310.0,89309.0,0.08208615]
[1765722661142,0.07046,89310.0,89309.0,0.08208615]
[1765722662052,0.081656,89310.0,89309.0,0.0707961]
[1765722662551,0.081656,89310.0,89309.0,0.002]
[1765722663151,0.081656,89310.0,89309.0,0.05905]
[1765722663352,0.080656,89310.0,89309.0,0.02809]
[1765722663657,0.080656,89310.0,89309.0,0.05905]
[1765722663658,0.081656,89310.0,89309.0,0.05905]
[1765722665157,0.080656,89310.0,89309.0,0.05705]
[1765722665458,0.080656,89310.0,89309.0,0.05805]
[1765722665459,0.10756301,89310.0,89309.0,0.05805]
[1765722666059,0.10756301,89310.0,89309.0,0.001]
[1765722666449,0.10656301,89310.0,89307.0,0.0111963]
[1765722666751,0.05471,89308.0,89307.0,0.0111963]
[1765722667058,0.08061701,89308.0,89307.0,0.0111963]
[1765722667459,0.05471,89306.0,89305.0,0.01099267]
[1765722667656,0.08061701,89306.0,89304.0,0.01136465]
[1765722667863,0.01357,89310.0,89304.0,0.03945465]
[1765722667864,0.10834361,89305.0,89304.0,0.03945465]
[1765722668455,0.10834361,89305.0,89304.0,0.01136465]
[1765722669550,0.11034361,89305.0,89304.0,0.00116795]
[1765722670153,0.10934361,89305.0,89304.0,0.00016795]
[1765722670463,0.11034361,89305.0,89304.0,0.00116795]
[1765722670667,0.10934361,89305.0,89304.0,0.00116795]
[1765722670855,0.11034361,89305.0,89304.0,0.00116795]
[1765722672274,0.10934361,89305.0,89304.0,0.00116795]
[1765722672462,0.10934361,89305.0,89304.0,0.00016795]
[1765722672665,0.11134361,89305.0,89304.0,0.00116795]
[1765722672857,0.11034361,89305.0,89304.0,0.00116795]
[1765722673058,0.0278686,89290.0,89288.0,0.02809]
[1765722673254,0.07138,89285.0,89284.0,0.0682493]
[1765722673452,0.07138,89285.0,89284.0,0.0392893]
[1765722673657,0.07138,89285.0,89284.0,0.05074143]
[1765722674165,0.07138,89285.0,89284.0,0.0111993]
[1765722674850,0.05471,89277.0,89276.0,0.05721795]
[1765722675156,0.05471,89277.0,89276.0,0.07944049]
[1765722676163,0.05571,89277.0,89276.0,0.07944049]
[1765722676566,0.05671,89277.0,89276.0,0.08044049]
[1765722677564,0.0679101,89277.0,89276.0,0.05821795]
[1765722677864,0.05671,89277.0,89276.0,0.05821795]
[1765722678464,0.0679101,89277.0,89276.0,0.05821795]
[1765722679757,0.05671,89277.0,89276.0,0.05821795]
[1765722683068,0.05671,89277.0,89276.0,0.00116795]
[1765722683565,0.05671,89277.0,89276.0,0.02925795]
[1765722684370,0.05671,89277.0,89276.0,0.00116795]
[1765722692874,0.05533,89268.0,89267.0,0.0114841]
[1765722693063,0.05662,89262.0,89261.0,0.039362]
[1765722693269,0.05662,89262.0,89261.0,0.068562]
[1765722693464,0.067822,89262.0,89261.0,0.068562]
[1765722693666,0.067822,89262.0,89261.0,0.0684789]
[1765722693871,0.067822,89262.0,89261.0,0.05736]
[1765722694081,0.067822,89262.0,89261.0,0.02816]
[1765722694379,0.05662,89257.0,89256.0,0.41816]
[1765722694574,0.0678228,89256.0,89255.0,1.5]
[1765722694977,0.05662,89256.0,89255.0,1.5]
[1765722695869,0.05762,89256.0,89255.0,1.5]
[1765722696772,0.05862,89256.0,89255.0,1.5]
[1765722698283,0.05862,89256.0,89255.0,1.51762]
[1765722698666,0.002,89256.0,89255.0,1.51762]
[1765722698876,0.002,89256.0,89255.0,1.87842]
[1765722701980,0.03074,89256.0,89255.0,1.87842]
[1765722702183,0.05862,89256.0,89255.0,1.87842]
[1765722702379,0.41942,89256.0,89255.0,1.5]
[1765722703184,0.43621,89256.0,89255.0,1.5]
[1765722703490,0.41942,89256.0,89255.0,1.5]
[1765722704691,0.3628,89256.0,89255.0,1.5]
[1765722705684,0.39154,89256.0,89255.0,1.5]
[1765722705885,0.03074,89256.0,89255.0,1.5]
[1765722706492,0.05862,89256.0,89255.0,1.5]
[1765722706792,0.43621,89256.0,89255.0,1.5]
[1765722711399,0.41942,89256.0,89255.0,1.5]
[1765722711785,0.3628,89256.0,89255.0,1.5]
[1765722712301,0.002,89256.0,89255.0,1.5]
[1765722712799,0.002,89256.0,89255.0,1.8608]
[1765722713589,0.3608,89268.0,89267.0,0.0685614]
[1765722713891,0.41546776,89268.0,89267.0,0.0685614]
[1765722714491,0.44334776,89268.0,89267.0,0.0685614]
[1765722714989,0.44434776,89268.0,89267.0,0.0685614]
[1765722715190,0.02692776,89268.0,89267.0,0.0685614]
[1765722715392,0.05766776,89268.0,89267.0,0.0685614]
[1765722715998,0.05566776,89268.0,89267.0,0.0685614]
[1765722716189,0.05666776,89268.0,89267.0,0.0695614]
[1765722716601,0.05667707,89268.0,89267.0,0.0695614]
[1765722716798,0.05567707,89268.0,89267.0,0.0685614]
[1765722717099,0.02693707,89268.0,89267.0,0.0705614]
[1765722717403,0.05698707,89268.0,89267.0,0.0705614]
[1765722717700,0.02693843,89268.0,89267.0,0.0695614]
[1765722717902,0.02793843,89268.0,89267.0,0.0705614]
[1765722718291,0.02693843,89268.0,89267.0,0.0695614]
[1765722718602,0.02793843,89268.0,89267.0,0.0705614]
[1765722718900,0.08573843,89268.0,89267.0,0.0695614]
[1765722719200,0.10295843,89268.0,89267.0,0.0695614]
[1765722719405,0.10395843,89268.0,89267.0,0.0705614]
[1765722719795,0.11515973,89268.0,89267.0,0.05936]
[1765722719988,0.47495973,89268.0,89267.0,0.001]
[1765722720194,0.47595973,89268.0,89267.0,0.002]
[1765722721599,0.44753843,89268.0,89267.0,0.05899]
[1765722721809,0.44753843,89268.0,89267.0,0.05999]
[1765722722893,0.44653843,89268.0,89267.0,0.05899]
[1765722723090,0.44753843,89268.0,89267.0,0.05999]
[1765722723498,0.46375843,89268.0,89267.0,0.001]
[1765722723899,0.46475843,89268.0,89267.0,0.002]
[1765722724092,0.46375843,89268.0,89267.0,0.02975]
[1765722724295,0.46475843,89268.0,89267.0,0.05999]
[1765722724697,0.46475843,89268.0,89267.0,0.05899]
[1765722724998,0.46475843,89268.0,89267.0,0.05999]
[1765722727003,0.46475843,89268.0,89267.0,0.05899]
[1765722727208,0.46475843,89268.0,89267.0,0.05999]
[1765722727612,0.44753843,89268.0,89267.0,0.05999]
[1765722728410,0.46475843,89268.0,89267.0,0.05999]
[1765722728600,0.46475843,89268.0,89267.0,0.002]
[1765722729505,0.46375843,89268.0,89267.0,0.001]
[1765722729710,0.46475843,89268.0,89267.0,0.05999]
[1765722730710,0.46375843,89268.0,89267.0,0.05899]
[1765722730898,0.46475843,89268.0,89267.0,0.05999]
[1765722731298,0.46475843,89268.0,89267.0,0.002]
[1765722733704,0.06821,89256.0,89255.0,1.5]
[1765722733899,0.45494843,89256.0,89255.0,1.5]
[1765722734803,0.44653843,89256.0,89255.0,1.501]
[1765722736002,0.44753843,89256.0,89255.0,1.501]
[1765722738910,0.46475843,89256.0,89255.0,1.501]
[1765722739209,0.44753843,89256.0,89255.0,1.501]
[1765722739415,0.3628,89256.0,89255.0,1.501]
[1765722740323,0.002,89256.0,89255.0,1.501]
[1765722743816,0.0608,89256.0,89255.0,1.501]
[1765722744622,0.002,89256.0,89255.0,1.501]
[1765722749715,0.06009,89256.0,89255.0,1.501]
[1765722750023,0.03173,89256.0,89255.0,1.501]
[1765722750518,0.002,89256.0,89255.0,1.501]
[1765722751212,0.03173,89256.0,89255.0,1.501]
[1765722752321,0.002,89256.0,89255.0,1.501]
[1765722754221,0.002,89256.0,89255.0,1.51345]
[1765722758919,0.06009,89256.0,89255.0,1.51345]
[1765722759830,0.06009,89256.0,89255.0,2.20116]
[1765722760129,0.002,89256.0,89255.0,2.21245]
[1765722760329,0.002,89256.0,89255.0,2.57325]
[1765722762533,0.06009,89256.0,89255.0,1.51229]
[1765722762735,0.06009,89256.0,89255.0,2.21245]
[1765722764522,0.002,89256.0,89255.0,2.21245]
[1765722764923,0.002,89256.0,89255.0,2.57325]
[1765722765325,0.06009,89256.0,89255.0,2.21245]
[1765722766837,0.06009,89256.0,89255.0,2.20116]
[1765722772729,0.06009,89256.0,89255.0,2.2187]
[1765722774130,0.002,89256.0,89255.0,2.2187]
[1765722775334,0.06009,89256.0,89255.0,2.2187]
[1765722776526,0.06009,89256.0,89255.0,1.501]
[1765722780228,0.06009,89256.0,89255.0,1.51859]
[1765722780446,0.06009,89256.0,89255.0,1.501]
[1765722781841,0.06009,89256.0,89255.0,1.51859]
[1765722785348,0.0860871,89256.0,89255.0,1.501]
[1765722786435,0.0860871,89256.0,89255.0,1.51859]
[1765722787139,0.06009,89256.0,89255.0,1.51859]
[1765722787835,0.002,89256.0,89255.0,1.51859]
[1765722788031,0.08550611,89256.0,89255.0,1.51859]
[1765722789344,0.10226611,89256.0,89255.0,1.501]
[1765722790743,0.0687157,89233.0,89232.0,0.00022413]
[1765722790935,0.05751,89207.0,89206.0,0.05787]
[1765722791136,0.05751,89201.0,89200.0,0.06262]
[1765722791547,0.08564,89206.0,89205.0,0.05787]
[1765722791743,0.3608,89207.0,89206.0,0.0690791]
[1765722791943,0.36088028,89207.0,89206.0,0.0690791]
[1765722792649,8.028e-05,89207.0,89206.0,0.0690791]
[1765722792851,8.028e-05,89207.0,89206.0,0.6537991]
[1765722793556,0.00016815,89215.0,89214.0,0.0690781]
[1765722794855,0.00116815,89215.0,89214.0,0.0690781]
[1765722795249,0.00216815,89215.0,89214.0,0.0690781]
[1765722795551,0.3608,89229.0,89228.0,0.05787]
[1765722796152,0.41831,89229.0,89228.0,0.05787]
[1765722797150,0.41931,89229.0,89228.0,0.05787]
[1765722798556,0.42031,89229.0,89228.0,0.05787]
[1765722798856,0.05751,89225.0,89224.0,0.02993]
[1765722799055,0.02938,89225.0,89224.0,0.05787]
[1765722799244,0.05751,89225.0,89224.0,0.05787]
[1765722800262,0.05951,89225.0,89224.0,0.05887]
[1765722800952,0.05851,89225.0,89224.0,0.05887]
[1765722801155,0.05951,89225.0,89224.0,0.05887]
[1765722801454,0.002,89225.0,89224.0,0.05887]
[1765722804258,0.35999692,89229.0,89228.0,0.02993]
[1765722804559,0.38937692,89229.0,89228.0,0.05787]
[1765722804961,0.41750692,89229.0,89228.0,0.05787]
[1765722805961,0.41750692,89229.0,89228.0,0.0690763]
[1765722806661,0.42971312,89229.0,89228.0,0.0700763]
[1765722807064,0.43071312,89229.0,89228.0,0.0720763]
[1765722807380,0.41950692,89229.0,89228.0,0.06087]
[1765722809366,0.44648774,89229.0,89228.0,0.06087]
[1765722809760,0.44648774,89229.0,89228.0,0.06187]
[1765722810358,0.44548774,89229.0,89228.0,0.05887]
[1765722810555,0.44548774,89229.0,89228.0,0.06087]
[1765722810756,0.44748774,89229.0,89228.0,0.06087]
[1765722811061,0.44648774,89229.0,89228.0,0.06087]
[1765722811267,0.44748774,89229.0,89228.0,0.06087]
[1765722811463,0.44548774,89229.0,89228.0,0.06087]
[1765722811656,0.44648774,89229.0,89228.0,0.06087]
[1765722812768,0.44548774,89229.0,89228.0,0.05787]
[1765722812967,0.44648774,89229.0,89228.0,0.06087]
[1765722813468,0.36099692,89229.0,89228.0,0.05787]
[1765722813654,0.002,89229.0,89228.0,0.06087]
[1765722813853,0.001,89229.0,89228.0,0.06087]
[1765722814053,0.002,89229.0,89228.0,0.06187]
[1765722819173,0.05912,89229.0,89228.0,0.06187]
[1765722819962,0.99525,89228.0,89227.0,0.05529]
[1765722821374,0.99725,89228.0,89227.0,0.05929]
[1765722822173,0.94013,89228.0,89227.0,0.05929]
[1765722822873,0.94013,89228.0,89227.0,0.05629]
[1765722823260,0.94013,89228.0,89227.0,0.41609]
[1765722823466,0.99725,89228.0,89227.0,0.41609]
[1765722824269,0.99825,89228.0,89227.0,0.41609]
[1765722824867,0.99725,89228.0,89227.0,0.41609]
[1765722826161,0.99625,89228.0,89227.0,0.41609]
[1765722826372,0.99725,89228.0,89227.0,0.41609]
[1765722826876,0.93813,89228.0,89227.0,0.41609]
[1765722827169,0.94013,89228.0,89227.0,0.41609]
[1765722827979,0.93913,89228.0,89227.0,0.41609]
[1765722828177,0.94013,89228.0,89227.0,0.41609]
[1765722830080,0.93913,89228.0,89227.0,0.41609]
[1765722830265,0.94313,89228.0,89227.0,0.41609]
[1765722830580,0.94413,89228.0,89227.0,0.41609]
[1765722832578,0.94413,89228.0,89227.0,0.05529]
[1765722833473,0.0179,89226.0,89221.0,0.0112071]
[1765722833675,0.07502,89226.0,89225.0,0.0112067]
[1765722834080,0.05712,89222.0,89221.0,0.0388371]
[1765722834277,0.05712,89222.0,89221.0,0.0664971]
[1765722834479,0.41792,89227.0,89226.0,0.0664965]
[1765722834983,0.3608,89227.0,89226.0,0.0664965]
[1765722835681,0.38977,89227.0,89226.0,0.0664965]
[1765722837084,0.39077,89227.0,89226.0,0.0664965]
[1765722837488,0.39177,89227.0,89226.0,0.0664965]
[1765722838289,0.41992,89227.0,89226.0,0.0664965]
[1765722840575,0.41892,89227.0,89226.0,0.0664965]
[1765722840778,0.41992,89227.0,89226.0,0.0664965]
[1765722841589,0.002,89227.0,89226.0,0.0664965]
[1765722841986,0.03066,89227.0,89226.0,0.0664965]
[1765722842590,0.05776,89227.0,89226.0,0.0664965]
[1765722843389,0.03066,89227.0,89226.0,0.0664965]
[1765722844881,0.05776,89227.0,89226.0,0.0112065]
[1765722845180,0.0669665,89226.0,89225.0,0.0112066]
[1765722845389,0.3628,89227.0,89221.0,0.0112071]
[1765722845390,0.07322,89222.0,89221.0,0.0112071]
[1765722846081,0.0669681,89214.0,89213.0,0.3608]
[1765722846281,0.05576,89202.0,89201.0,0.0112097]
[1765722846480,0.05576,89202.0,89201.0,0.0673497]
[1765722847478,0.05576,89187.0,89186.0,0.38962]
[1765722847681,0.05576,89187.0,89186.0,0.3720116]
[1765722847987,0.0286708,89192.0,89181.0,0.0400322]
[1765722847988,0.05576,89182.0,89181.0,0.0400322]
[1765722848192,0.05576,89182.0,89181.0,0.0112122]
[1765722848392,0.05576,89182.0,89181.0,0.02231666]
[1765722848584,0.05576,89182.0,89181.0,0.0112122]
[1765722849983,0.05776,89182.0,89181.0,0.0112122]
[1765722850195,0.06176,89182.0,89181.0,0.0112122]
[1765722850493,0.06176,89182.0,89181.0,0.0673522]
[1765722850679,0.03466,89182.0,89181.0,0.0673522]
[1765722851379,0.06176,89182.0,89181.0,0.0673522]
[1765722852479,0.006,89182.0,89181.0,0.0673522]
[1765722853182,0.03466,89182.0,89181.0,0.0673522]
[1765722853382,0.06176,89182.0,89181.0,0.0673522]
[1765722853782,0.06176,89182.0,89181.0,0.0112122]
[1765722854387,0.05576,89178.0,89177.0,0.0112126]
[1765722855681,0.01746,89176.0,89169.0,0.3608]
[1765722855887,0.05576,89169.0,89168.0,0.0112138]
[1765722856086,0.05576,89169.0,89168.0,0.0673538]
[1765722857196,0.05776,89169.0,89168.0,0.0673538]
[1765722857500,0.05776,89169.0,89168.0,0.0112138]
[1765722858297,0.0669741,89166.0,89162.0,0.0112145]
[1765722858484,0.05576,89165.0,89164.0,4e-08]
[1765722858690,0.07322,89154.0,89153.0,0.0112156]
[1765722858889,0.01746,89154.0,89148.0,0.0112162]
[1765722859089,0.05576,89149.0,89148.0,0.0112162]
[1765722859401,0.41665196,89149.0,89148.0,0.0112162]
[1765722860286,0.41765196,89149.0,89148.0,0.0112162]
[1765722860491,0.05576,89140.0,89139.0,0.3608]
[1765722860688,0.05576,89130.0,89129.0,0.4008387]
[1765722860889,0.05592825,89138.0,89137.0,0.0673577]
[1765722861300,0.05592825,89138.0,89137.0,0.0112177]
[1765722861695,0.05592825,89138.0,89137.0,0.0400377]
[1765722862001,0.05592825,89138.0,89137.0,0.0112177]
[1765722862798,0.05792825,89138.0,89137.0,0.0673577]
[1765722863207,0.00616825,89138.0,89137.0,0.0673577]
[1765722863913,0.00616825,89138.0,89137.0,0.4281577]
[1765722864294,5e-08,89138.0,89137.0,0.4281577]
[1765722867101,0.05803825,89146.0,89145.0,0.0690467]
[1765722867601,0.00016825,89146.0,89145.0,0.0690467]
[1765722868497,9.196e-05,89149.0,89148.0,0.05723]
[1765722869603,0.05891196,89149.0,89148.0,0.05723]
[1765722869802,0.06091196,89149.0,89148.0,0.05823]
[1765722870404,0.06091196,89149.0,89148.0,0.02922]
[1765722871200,0.06291196,89149.0,89148.0,0.03022]
[1765722871408,0.06191196,89149.0,89148.0,0.03022]
[1765722871601,0.06191196,89149.0,89148.0,0.002]
[1765722872011,0.06191196,89149.0,89148.0,0.001]
[1765722872309,0.06391196,89149.0,89148.0,0.002]
[1765722872701,0.05882,89146.0,89145.0,0.0112167]
[1765722872896,0.41962,89146.0,89145.0,0.0112167]
[1765722874709,0.42162,89146.0,89145.0,0.0152167]
[1765722874915,0.42162,89146.0,89145.0,0.0724467]
[1765722875702,0.06082,89146.0,89145.0,0.0724467]
[1765722876317,0.06082,89146.0,89145.0,0.0899667]
[1765722876908,0.002,89146.0,89145.0,0.0899667]
[1765722877606,0.06082,89146.0,89145.0,0.0899667]
[1765722878815,0.002,89146.0,89145.0,0.0899667]
[1765722879701,0.03161,89146.0,89145.0,0.0899667]
[1765722880115,0.06082,89146.0,89145.0,0.0724467]
[1765722881602,0.06082,89146.0,89145.0,0.0152167]
[1765722882010,0.06082,89146.0,89145.0,0.0434367]
[1765722882208,0.06082,89146.0,89145.0,0.0152167]
[1765722882520,0.08873367,89146.0,89145.0,0.0152167]
[1765722883908,0.39071367,89146.0,89145.0,0.0724467]
[1765722884102,0.08873367,89146.0,89145.0,0.0724467]
[1765722885017,0.02135426,89146.0,89145.0,0.0724467]
[1765722885314,0.05891196,89149.0,89148.0,0.05723]
[1765722885516,0.05882,89146.0,89145.0,0.0724467]
[1765722886416,0.05882,89146.0,89145.0,0.0424367]
[1765722886608,0.05882,89146.0,89145.0,0.0714467]
[1765722886808,0.00109196,89149.0,89148.0,0.05723]
[1765722887425,0.05882,89146.0,89145.0,0.4032367]
[1765722887719,0.05882,89146.0,89145.0,0.0714467]
[1765722887916,0.05882,89146.0,89145.0,0.0684467]
[1765722888103,0.42062,89146.0,89145.0,0.002]
[1765722888511,0.42062,89146.0,89145.0,0.05923]
[1765722888718,0.42062,89146.0,89145.0,0.002]
[1765722889519,0.42162,89146.0,89145.0,0.007]
[1765722889916,0.42162,89146.0,89117.0,0.3608]
[1765722889917,0.05882,89110.0,89109.0,0.1808]
[1765722890116,0.05882,89110.0,89073.0,0.15760803]
[1765722890117,0.11472,89110.0,89067.0,0.0112265]
[1765722890316,0.0112252,89079.0,89046.0,0.01752]
[1765722890517,0.43528,89078.0,89046.0,0.01752]
[1765722890721,0.43528,89078.0,89074.0,0.0112256]
[1765722890913,0.31164902,89097.0,89089.0,0.01752]
[1765722891112,0.01135378,89096.0,89089.0,0.01752]
[1765722891626,0.00013088,89096.0,89089.0,0.01752]
[1765722891922,0.00013088,89096.0,89095.0,0.05723]
[1765722892619,0.00016835,89102.0,89101.0,0.05723]
[1765722893418,0.0002525,89102.0,89101.0,0.05723]
[1765722893727,0.011219,89127.0,89124.0,0.01752]
[1765722893911,0.3608,89125.0,89124.0,0.01752]
[1765722895426,0.3688,89125.0,89124.0,0.01752]
[1765722895610,0.3698,89125.0,89124.0,0.01752]
[1765722896024,0.3618,89125.0,89124.0,0.01752]
[1765722896221,0.3628,89125.0,89124.0,0.01752]
[1765722897130,0.38883007,89125.0,89124.0,0.01752]
[1765722897440,0.38983007,89125.0,89124.0,0.01752]
[1765722897926,0.38982592,89125.0,89124.0,0.01752]
[1765722898522,0.38882592,89125.0,89124.0,0.01752]
[1765722898823,0.38982592,89125.0,89124.0,0.01752]
[1765722899710,0.38882592,89125.0,89124.0,0.01752]
[1765722899915,0.3628,89125.0,89124.0,0.01752]
[1765722900716,0.38982583,89125.0,89124.0,0.01752]
[1765722900919,0.0112203,89117.0,89095.0,0.0112229]
[1765722901122,0.0112228,89097.0,89086.0,0.0112241]
[1765722901324,0.3608,89090.0,89089.0,0.0836138]
[1765722901716,0.3608,89090.0,89089.0,0.01752]
[1765722902423,0.3608,89090.0,89089.0,0.07339]
[1765722903215,0.3608,89090.0,89089.0,0.01852]
[1765722904023,0.3618,89090.0,89089.0,0.01852]
[1765722904224,0.3618,89090.0,89089.0,0.01752]
[1765722904524,0.3618,89090.0,89081.0,0.00016835]
[1765722904525,0.3628,89090.0,89081.0,0.00016835]
[1765722904720,0.3608,89082.0,89081.0,0.00016835]
[1765722905315,0.3608,89082.0,89067.0,0.01728]
[1765722905316,0.0112248,89081.0,89067.0,0.01728]
[1765722905628,0.3720264,89068.0,89067.0,0.01728]
[1765722906428,0.3720264,89068.0,89045.0,0.37808]
[1765722906429,0.0112271,89064.0,89045.0,0.37808]
[1765722906620,0.3608,89060.0,89045.0,0.37808]
[1765722906822,0.0112276,89059.0,89058.0,1.5]
[1765722907329,0.0112276,89059.0,89045.0,0.01728]
[1765722907527,0.0112289,89049.0,89045.0,0.01728]
[1765722907728,0.3608,89046.0,89045.0,0.01728]
[1765722908226,0.3608,89046.0,89045.0,0.07215]